fUSD/lending_fUSD_20240626
["ID","MTS","AMOUNT","RATE_DAILY","PERIOD"]
[330450352,1719421054265,-500.0,0.00043835,30]
[330450353,1719421054304,-728.12,0.00043835,120]
[330450354,1719421054345,-500.0,0.00043835,120]
[330450355,1719421054385,-500.28854247,0.00043835,120]
[330450356,1719421054430,-1850.62,0.00043835,120]
[330450357,1719421054471,-1484.8,0.00043835,120]
[330450358,1719421054513,-4270.63,0.00043835,120]
[330450359,1719421054552,-2000.27,0.00043835,120]
[330450360,1719421054590,-1535.2,0.00043835,120]
[330450361,1719421054631,-537.73634572,0.00043835,120]
[330450362,1719421054673,-500.0,0.00043835,120]
[330450363,1719421054715,-627.47,0.00043835,120]
[330450364,1719421054754,-500.0,0.00043835,120]
[330450365,1719421054795,-1306.33,0.00043835,120]
[330450366,1719421054839,-1306.33,0.00043835,120]
[330450367,1719421054880,-1306.33,0.00043835,120]
[330450368,1719421054920,-1306.33,0.00043835,120]
[330450369,1719421054962,-1059.38,0.00043835,120]
[330450370,1719421055003,-1306.33,0.00043835,120]
[330450371,1719421055042,-500.0,0.00043835,120]
[330450372,1719421055081,-500.0,0.00043835,120]
[330450373,1719421055123,-1306.33,0.00043835,120]
[330450374,1719421055164,-1528.43,0.00043835,120]
[330450375,1719421055204,-508.26,0.00043835,120]
[330450376,1719421055246,-1306.33,0.00043835,120]
[330450377,1719421055287,-1306.33,0.00043835,120]
[330450378,1719421055332,-1306.33,0.00043835,120]
[330450379,1719421055397,-500.0,0.00043835,120]
[330450380,1719421055441,-673.76,0.00043835,120]
[330450381,1719421055480,-2226.01,0.00043835,120]
[330450382,1719421055520,-500.0,0.00043835,120]
[330450383,1719421055560,-500.0,0.00043835,120]
[330450384,1719421055601,-500.0,0.00043835,120]
[330450385,1719421055642,-601.86,0.00043835,120]
[330450386,1719421055681,-500.0,0.00043835,120]
[330450387,1719421055721,-500.0,0.00043835,120]
[330450388,1719421055761,-552.6,0.00043835,120]
[330450389,1719421055800,-2000.0,0.00043835,120]
[330450390,1719421055838,-500.0,0.00043835,120]
[330450391,1719421055875,-500.0,0.00043835,120]
[330450392,1719421055910,-500.0,0.00043835,120]
[330450393,1719421055946,-4665.92,0.00043835,120]
[330450394,1719421055983,-500.0,0.00043835,120]
[330450395,1719421056019,-2142.38,0.00043835,120]
[330450396,1719421056055,-500.0,0.00043835,120]
[330450397,1719421056089,-500.0,0.00043835,120]
[330450398,1719421056127,-500.0,0.00043835,120]
[330450399,1719421056164,-500.0,0.00043835,120]
[330450400,1719421056200,-1565.23,0.00043835,120]
[330450401,1719421056235,-1229.92,0.00043835,120]
[330450402,1719421056365,-500.0,0.00043835,120]
[330450403,1719421056403,-500.0,0.00043835,120]
[330450404,1719421056441,-500.0,0.00043835,120]
[330450405,1719421056478,-500.0,0.00043835,120]
[330450406,1719421056514,-251.02,0.00043835,120]
[330450407,1719421056550,-756.44,0.00043835,120]
[330450408,1719421056588,-500.0,0.00043835,120]
[330450409,1719421056625,-500.0,0.00043835,120]
[330450410,1719421056665,-513.0163764,0.00043835,120]
[330450411,1719421056707,-714.77,0.00043835,120]
[330450412,1719421056751,-536.62,0.00043835,120]
[330450413,1719421056788,-3697.58,0.00043835,120]
[330450414,1719421056822,-500.0,0.00043835,120]
[330450415,1719421056857,-1453.18,0.00043835,120]
[330450416,1719421056894,-867.94,0.00043835,120]
[330450417,1719421056931,-500.0,0.00043835,120]
[330450418,1719421056967,-3235.38,0.00043835,120]
[330450419,1719421057003,-2592.31,0.00043835,120]
[330450420,1719421057038,-500.0,0.00043835,120]
[330450421,1719421057075,-2048.92,0.00043835,120]
[330450422,1719421057111,-500.0,0.00043835,120]
[330450423,1719421057146,-708.69,0.00043835,120]
[330450424,1719421057183,-936.66,0.00043835,120]
[330450425,1719421057219,-500.0,0.00043835,120]
[330450426,1719421057256,-703.2,0.00043835,120]
[330450427,1719421057292,-500.0,0.00043835,120]
[330450428,1719421057330,-500.0,0.00043835,120]
[330450429,1719421057367,-790.2,0.00043835,120]
[330450430,1719421057405,-500.0,0.00043835,120]
[330450431,1719421057443,-500.0,0.00043835,120]
[330450432,1719421057481,-500.0,0.00043835,120]
[330450433,1719421057518,-1558.51,0.00043835,120]
[330450434,1719421057555,-693.94,0.00043835,120]
[330450435,1719421057592,-500.0,0.00043835,120]
[330450436,1719421057633,-500.0,0.00043835,120]
[330450437,1719421057669,-500.0,0.00043835,30]
[330450438,1719421057710,-500.0,0.00043835,120]
[330450439,1719421057747,-500.0,0.00043835,120]
[330450440,1719421057783,-500.0,0.00043835,120]
[330450441,1719421057822,-500.0,0.00043835,120]
[330450442,1719421057858,-500.0,0.00043835,120]
[330450443,1719421057894,-1380.14,0.00043835,120]
[330450444,1719421057930,-500.0,0.00043835,120]
[330450445,1719421057964,-814.09,0.00043835,120]
[330450446,1719421058000,-500.0,0.00043835,120]
[330450447,1719421058036,-1668.05,0.00043835,120]
[330450448,1719421058074,-1598.55,0.00043835,120]
[330450449,1719421058110,-818.43,0.00043835,120]
[330450450,1719421058146,-902.09,0.00043835,120]
[330450451,1719421058181,-500.0,0.00043835,120]
[330450452,1719421058216,-500.0,0.00043835,120]
[330450453,1719421058251,-764.49,0.00043835,120]
[330450454,1719421058288,-1352.80643949,0.00043835,90]
[330450455,1719421058322,-527.51,0.00043835,120]
[330450456,1719421058358,-200.0,0.00043836,60]
[330450457,1719421058393,-415.83007993,0.00043857,30]
[330450458,1719421058427,-180.3140697,0.00043857,30]
[330450459,1719421058461,-233.43532079,0.0004388,120]
[330450460,1719421058495,-844.52075291,0.0004388,30]
[330450461,1719421058530,-872.42277153,0.000439,120]
[330450462,1719421058566,-150.0,0.00043914,30]
[330450463,1719421058601,-1000.0,0.0004393,30]
[330450464,1719421058638,-150.0,0.00043931,30]
[330450465,1719421058674,-150.0,0.00043945,120]
[330450466,1719421058714,-2379.3,0.00043951,99]
[330450467,1719421058752,-50000.0,0.00044,34]
[330450468,1719421058791,-765.83511751,0.00044,120]
[330450469,1719421058826,-900.0,0.00044,120]
[330450470,1719421058862,-1000000.0,0.00044,40]
[330450471,1719421058897,-169.324,0.00044,120]
[330450472,1719421058932,-790.0,0.00044,120]
[330450473,1719421058970,-679.567292,0.00044,57]
[330450474,1719421059008,-1000.0,0.00044025,30]
[330450475,1719421059050,-17652.71285788,0.000441,45]
[330450476,1719421059091,-534.74686753,0.00044109,120]
[330450477,1719421059127,-500.0,0.00044109,120]
[330450478,1719421059163,-500.0,0.00044109,120]
[330450479,1719421059198,-500.0,0.00044109,120]
[330450480,1719421059234,-500.0,0.00044109,120]
[330450481,1719421059270,-500.0,0.00044109,120]
[330450482,1719421059305,-500.0,0.00044109,120]
[330450483,1719421059343,-500.0,0.00044109,120]
[330450484,1719421059381,-236.54333675,0.00044109,120]
[330450485,1719421059421,-500.0,0.00044109,120]
[330450486,1719421059459,-500.0,0.00044109,120]
[330450487,1719421059498,-500.0,0.00044109,120]
[330450488,1719421059536,-500.0,0.00044109,120]
[330450489,1719421059579,-233.23278379,0.00044109,120]
[330450490,1719421059620,-479.69342187,0.00044109,120]
[330450491,1719421059662,-500.0,0.00044109,120]
[330450492,1719421059702,-500.0,0.00044109,120]
[330450493,1719421059748,-500.0,0.00044109,120]
[330450494,1719421059788,-500.0,0.00044109,120]
[330450495,1719421059830,-328.15622969,0.00044109,120]
[330450496,1719421059870,-502.49493133,0.00044109,120]
[330450497,1719421059911,-500.0,0.00044109,120]
[330450498,1719421059949,-500.0,0.00044109,120]
[330450499,1719421059990,-500.0,0.00044109,120]
[330450500,1719421060028,-500.0,0.00044109,120]
[330450501,1719421060067,-500.0,0.00044109,120]
[330450502,1719421060107,-163.36122001,0.00044109,120]
[330450503,1719421060146,-537.75100326,0.00044109,120]
[330450504,1719421060185,-500.0,0.00044109,120]
[330450505,1719421060221,-197.26833454,0.00044109,120]
[330450506,1719421060258,-500.0,0.00044109,120]
[330450507,1719421060479,-500.0,0.00044109,120]
[330450508,1719421060517,-500.0,0.00044109,120]
[330450509,1719421060555,-392.85910456,0.00044109,120]
[330450510,1719421060597,-468.66474352,0.00044109,120]
[330450511,1719421060637,-500.0,0.00044109,120]
[330450512,1719421060676,-500.0,0.00044109,120]
[330450513,1719421060719,-500.0,0.00044109,120]
[330450514,1719421060759,-629.11854321,0.00044109,120]
[330450515,1719421060801,-500.0,0.00044109,120]
[330450516,1719421060841,-500.0,0.00044109,120]
[330450517,1719421060879,-504.39917071,0.00044109,120]
[330450518,1719421060917,-500.0,0.00044109,120]
[330450519,1719421060954,-500.0,0.00044109,120]
[330450520,1719421060991,-522.23839226,0.00044109,120]
[330450521,1719421061029,-500.0,0.00044109,120]
[330450522,1719421061066,-200.0,0.00044109,120]
[330450523,1719421061104,-500.0,0.00044109,120]
[330450524,1719421061142,-500.0,0.00044109,120]
[330450525,1719421061178,-295.88192168,0.00044109,120]
[330450526,1719421061214,-500.0,0.00044109,120]
[330450527,1719421061250,-500.0,0.00044109,120]
[330450528,1719421061286,-500.0,0.00044109,120]
[330450529,1719421061322,-500.0,0.00044109,120]
[330450530,1719421061358,-500.0,0.00044109,120]
[330450531,1719421061394,-502.52469115,0.00044109,120]
[330450532,1719421061431,-155.30780604,0.00044109,120]
[330450533,1719421061468,-500.0,0.00044109,120]
[330450534,1719421061505,-500.0,0.00044109,120]
[330450535,1719421061541,-500.0,0.00044109,120]
[330450536,1719421061579,-500.0,0.00044109,120]
[330450537,1719421061619,-500.0,0.00044109,120]
[330450538,1719421061659,-500.0,0.00044109,120]
[330450539,1719421061697,-178.50649638,0.00044109,120]
[330450540,1719421061738,-500.0,0.00044109,120]
[330450541,1719421061777,-305.74608206,0.00044109,120]
[330450542,1719421061817,-500.0,0.00044109,120]
[330450543,1719421061854,-500.0,0.00044109,120]
[330450544,1719421061888,-500.0,0.00044109,120]
[330450545,1719421061922,-500.0,0.00044109,120]
[330450546,1719421061954,-500.0,0.00044109,120]
[330450547,1719421061987,-500.0,0.00044109,120]
[330450548,1719421062023,-760.7,0.00044109,120]
[330450549,1719421062057,-500.0,0.00044109,120]
[330450550,1719421062091,-156.79477973,0.00044109,120]
[330450551,1719421062125,-503.78259247,0.00044109,120]
[330450552,1719421062162,-500.0,0.00044109,120]
[330450553,1719421062195,-500.0,0.00044109,120]
[330450554,1719421062229,-500.0,0.00044109,120]
[330450555,1719421062263,-1352.54,0.00044109,120]
[330450556,1719421062296,-500.0,0.00044109,120]
[330450557,1719421062330,-500.0,0.00044109,120]
[330450558,1719421062364,-3917.27,0.00044109,120]
[330450559,1719421062399,-500.0,0.00044109,120]
[330450560,1719421062434,-529.66287009,0.00044109,120]
[330450561,1719421062470,-500.0,0.00044109,120]
[330450562,1719421062507,-723.08,0.00044109,120]
[330450563,1719421062546,-500.0,0.00044109,120]
[330450564,1719421062584,-835.87,0.00044109,120]
[330450565,1719421062625,-230.42,0.00044109,120]
[330450566,1719421062663,-500.0,0.00044109,120]
[330450567,1719421062700,-1240.77,0.00044109,120]
[330450568,1719421062744,-500.0,0.00044109,120]
[330450569,1719421062783,-500.0,0.00044109,120]
[330450570,1719421062822,-500.0,0.00044109,120]
[330450571,1719421062858,-500.0,0.00044109,120]
[330450572,1719421062893,-500.0,0.00044109,120]
[330450573,1719421062929,-930.25,0.00044109,120]
[330450574,1719421062967,-500.0,0.00044109,120]
[330450575,1719421063004,-500.0,0.00044109,120]
[330450576,1719421063042,-500.0,0.00044109,120]
[330450577,1719421063080,-1174.56,0.00044109,120]
[330450578,1719421063119,-202.62832229,0.00044109,120]
[330450579,1719421063159,-500.0,0.00044109,120]
[330450580,1719421063200,-423.72659019,0.00044109,120]
[330450581,1719421063239,-500.0,0.00044109,120]
[330450582,1719421063277,-500.0,0.00044109,120]
[330450583,1719421063315,-500.0,0.00044109,120]
[330450584,1719421063351,-500.0,0.00044109,120]
[330450585,1719421063388,-959.51,0.00044109,120]
[330450586,1719421063426,-500.0,0.00044109,120]
[330450587,1719421063463,-500.0,0.00044109,120]
[330450588,1719421063506,-500.0,0.00044109,120]
[330450589,1719421063547,-500.0,0.00044109,120]
[330450590,1719421063596,-527.12,0.00044109,120]
[330450591,1719421063638,-500.0,0.00044109,120]
[330450592,1719421063677,-500.0,0.00044109,120]
[330450593,1719421063720,-500.0,0.00044109,120]
[330450594,1719421063762,-500.0,0.00044109,120]
[330450595,1719421063801,-500.0,0.00044109,120]
[330450596,1719421064288,-588.09,0.00044109,120]
[330450597,1719421064332,-500.0,0.00044109,120]
[330450598,1719421064371,-500.0,0.00044109,120]
[330450599,1719421064407,-908.66,0.00044109,120]
[330450600,1719421064445,-500.0,0.00044109,120]
[330450601,1719421064484,-1130.57,0.00044109,120]
[330450602,1719421064520,-500.0,0.00044109,120]
[330450603,1719421064559,-1518.34,0.00044109,120]
[330450604,1719421064597,-500.0,0.00044109,120]
[330450605,1719421064634,-298.89941016,0.00044109,120]
[330450606,1719421064670,-500.0,0.00044109,120]
[330450607,1719421064707,-500.0,0.00044109,120]
[330450608,1719421064747,-500.0,0.00044109,120]
[330450609,1719421064783,-500.0,0.00044109,120]
[330450610,1719421064822,-500.0,0.00044109,120]
[330450611,1719421064860,-500.0,0.00044109,120]
[330450612,1719421064896,-500.0,0.00044109,120]
[330450613,1719421064934,-500.0,0.00044109,120]
[330450614,1719421064971,-500.0,0.00044109,120]
[330450615,1719421065008,-575.64,0.00044109,120]
[330450616,1719421065045,-691.59,0.00044109,120]
[330450617,1719421065084,-713.07,0.00044109,120]
[330450618,1719421065121,-500.0,0.00044109,120]
[330450619,1719421065157,-500.0,0.00044109,120]
[330450620,1719421065194,-500.0,0.00044109,120]
[330450621,1719421065229,-553.87566221,0.00044109,120]
[330450622,1719421065264,-554.95,0.00044109,120]
[330450623,1719421065300,-500.0,0.00044109,120]
[330450624,1719421065338,-1564.02,0.00044109,120]
[330450625,1719421065374,-635.92,0.00044109,120]
[330450626,1719421065411,-7752.16,0.00044109,120]
[330450627,1719421065449,-500.0,0.00044109,120]
[330450628,1719421065487,-500.0,0.00044109,120]
[330450629,1719421065523,-500.0,0.00044109,120]
[330450630,1719421065561,-500.0,0.00044109,120]
[330450631,1719421065600,-500.0,0.00044109,120]
[330450632,1719421065638,-500.0,0.00044109,120]
[330450633,1719421065676,-500.0,0.00044109,120]
[330450634,1719421065719,-500.0,0.00044109,120]
[330450635,1719421065759,-500.0,0.00044109,120]
[330450636,1719421065796,-500.0,0.00044109,120]
[330450637,1719421065833,-503.7421389,0.00044109,120]
[330450638,1719421065871,-500.0,0.00044109,120]
[330450639,1719421065909,-1463.06,0.00044109,120]
[330450640,1719421065947,-500.0,0.00044109,120]
[330450641,1719421066001,-500.0,0.00044109,120]
[330450642,1719421066041,-769.74,0.00044109,120]
[330450643,1719421066084,-500.0,0.00044109,120]
[330450644,1719421066124,-500.0,0.00044109,120]
[330450645,1719421066163,-500.0,0.00044109,120]
[330450646,1719421066201,-519.20010812,0.00044109,120]
[330450647,1719421066242,-704.96,0.00044109,120]
[330450648,1719421066285,-500.0,0.00044109,120]
[330450649,1719421066323,-500.0,0.00044109,120]
[330450650,1719421066360,-501.49868045,0.00044109,120]
[330450651,1719421066400,-637.44,0.00044109,120]
[330450652,1719421066439,-500.0,0.00044109,120]
[330450653,1719421066478,-641.54,0.00044109,120]
[330450654,1719421066518,-500.0,0.00044109,120]
[330450655,1719421066558,-774.33,0.00044109,120]
[330450656,1719421066597,-500.0,0.00044109,120]
[330450657,1719421066637,-569.13,0.00044109,120]
[330450658,1719421066677,-786.33,0.00044109,120]
[330450659,1719421066721,-500.0,0.00044109,30]
[330450660,1719421066760,-634.62,0.00044109,120]
[330450661,1719421066800,-500.0,0.00044109,120]
[330450662,1719421066839,-500.0,0.00044109,120]
[330450663,1719421066877,-500.0,0.00044109,120]
[330450664,1719421066916,-589.46,0.00044109,120]
[330450665,1719421066960,-1166.44,0.00044109,120]
[330450666,1719421066999,-500.0,0.00044109,120]
[330450667,1719421067037,-500.0,0.00044109,120]
[330450668,1719421067238,-500.0,0.00044109,120]
[330450669,1719421067284,-503.08197452,0.00044109,120]
[330450670,1719421067324,-500.0,0.00044109,120]
[330450671,1719421067362,-500.0,0.00044109,120]
[330450672,1719421067403,-1515.22,0.00044109,120]
[330450673,1719421067442,-500.0,0.00044109,120]
[330450674,1719421067480,-532.62,0.00044109,120]
[330450675,1719421067518,-786.16,0.00044109,120]
[330450676,1719421067556,-500.0,0.00044109,120]
[330450677,1719421067594,-500.0,0.00044109,120]
[330450678,1719421067632,-500.0,0.00044109,120]
[330450679,1719421067671,-1182.5,0.00044109,120]
[330450680,1719421067709,-500.0,0.00044109,120]
[330450681,1719421067755,-3270.15,0.00044109,120]
[330450682,1719421067794,-500.0,0.00044109,120]
[330450683,1719421067830,-500.0,0.00044109,120]
[330450684,1719421067867,-846.45,0.00044109,120]
[330450685,1719421067903,-961.92,0.00044109,120]
[330450686,1719421067941,-500.0,0.00044109,120]
[330450687,1719421067979,-500.0,0.00044109,120]
[330450688,1719421068016,-500.0,0.00044109,120]
[330450689,1719421068054,-500.0,0.00044109,120]
[330450690,1719421068092,-720.72,0.00044109,120]
[330450691,1719421068129,-500.0,0.00044109,120]
[330450692,1719421068164,-500.0,0.00044109,120]
[330450693,1719421068200,-1195.34,0.00044109,120]
[330450694,1719421068235,-500.0,0.00044109,120]
[330450695,1719421068271,-501.53415955,0.00044109,120]
[330450696,1719421068307,-500.0,0.00044109,120]
[330450697,1719421068342,-1320.06,0.00044109,120]
[330450698,1719421068377,-500.0,0.00044109,120]
[330450699,1719421068412,-500.0,0.00044109,120]
[330450700,1719421068450,-500.0,0.00044109,120]
[330450701,1719421068487,-629.68929978,0.00044109,120]
[330450702,1719421068523,-500.0,0.00044109,120]
[330450703,1719421068561,-500.0,0.00044109,120]
[330450704,1719421068599,-1103.69,0.00044109,120]
[330450705,1719421068636,-500.0,0.00044109,120]
[330450706,1719421068675,-622.53,0.00044109,120]
[330450707,1719421068716,-1853.82,0.00044109,120]
[330450708,1719421068758,-500.0,0.00044109,120]
[330450709,1719421068797,-275.25966616,0.00044109,120]
[330450710,1719421068837,-500.0,0.00044109,120]
[330450711,1719421068877,-500.0,0.00044109,120]
[330450712,1719421068916,-500.0,0.00044109,120]
[330450713,1719421068954,-500.0,0.00044109,120]
[330450714,1719421068996,-500.0,0.00044109,120]
[330450715,1719421069039,-535.17,0.00044109,120]
[330450716,1719421069080,-500.0,0.00044109,120]
[330450717,1719421069119,-500.0,0.00044109,120]
[330450718,1719421069158,-500.0,0.00044109,120]
[330450719,1719421069197,-905.03,0.00044109,120]
[330450720,1719421069236,-500.0,0.00044109,120]
[330450721,1719421069276,-500.0,0.00044109,120]
[330450722,1719421069313,-1476.22,0.00044109,120]
[330450723,1719421069349,-500.0,0.00044109,120]
[330450724,1719421069387,-500.0,0.00044109,120]
[330450725,1719421069423,-500.0,0.00044109,120]
[330450726,1719421069459,-500.0,0.00044109,120]
[330450727,1719421069496,-500.0,0.00044109,120]
[330450728,1719421069534,-500.0,0.00044109,120]
[330450729,1719421069572,-500.0,0.00044109,120]
[330450730,1719421069613,-806.53,0.00044109,120]
[330450731,1719421069652,-500.0,0.00044109,120]
[330450732,1719421069691,-561.18,0.00044109,120]
[330450733,1719421069730,-500.0,0.00044109,120]
[330450734,1719421069768,-547.94380936,0.00044109,120]
[330450735,1719421069805,-596.85,0.00044109,120]
[330450736,1719421069842,-511.59,0.00044109,120]
[330450737,1719421069879,-500.0,0.00044109,120]
[330450738,1719421069916,-611.18,0.00044109,120]
[330450739,1719421069955,-500.0,0.00044109,120]
[330450740,1719421069993,-500.0,0.00044109,120]
[330450741,1719421070031,-500.0,0.00044109,120]
[330450742,1719421070067,-500.0,0.00044109,120]
[330450743,1719421070106,-500.0,0.00044109,120]
[330450744,1719421070143,-500.0,0.00044109,120]
[330450745,1719421070178,-500.0,0.00044109,120]
[330450746,1719421070214,-636.58,0.00044109,120]
[330450747,1719421070252,-1625.93,0.00044109,120]
[330450748,1719421070287,-994.35,0.00044109,120]
[330450749,1719421070323,-846.81,0.00044109,120]
[330450750,1719421070358,-3349.15,0.00044109,120]
[330450751,1719421070394,-500.0,0.00044109,120]
[330450752,1719421070433,-500.0,0.00044109,120]
[330450753,1719421070470,-514.73,0.00044109,120]
[330450754,1719421070508,-1298.88,0.00044109,120]
[330450755,1719421070545,-500.0,0.00044109,120]
[330450756,1719421070582,-500.0,0.00044109,120]
[330450757,1719421070623,-500.0,0.00044109,120]
[330450758,1719421070665,-1256.63,0.00044109,120]
[330450759,1719421070702,-500.0,0.00044109,120]
[330450760,1719421070744,-500.0,0.00044109,120]
[330450761,1719421070782,-1464.7,0.00044109,120]
[330450762,1719421070817,-1004.81,0.00044109,120]
[330450763,1719421070852,-500.0,0.00044109,120]
[330450764,1719421070887,-500.0,0.00044109,120]
[330450765,1719421070922,-500.0,0.00044109,120]
[330450766,1719421070956,-500.0,0.00044109,120]
[330450767,1719421070990,-500.0,0.00044109,120]
[330450768,1719421071025,-500.0,0.00044109,120]
[330450769,1719421071060,-1307.72,0.00044109,120]
[330450770,1719421071096,-614.32,0.00044109,120]
[330450771,1719421071130,-500.0,0.00044109,120]
[330450772,1719421071166,-500.0,0.00044109,120]
[330450773,1719421071200,-500.0,0.00044109,120]
[330450774,1719421071404,-500.0,0.00044109,120]
[330450775,1719421071441,-563.43,0.00044109,120]
[330450776,1719421071478,-500.0,0.00044109,120]
[330450777,1719421071515,-500.0,0.00044109,120]
[330450778,1719421071552,-500.0,0.00044109,120]
[330450779,1719421071589,-1216.1,0.00044109,120]
[330450780,1719421071627,-500.0,0.00044109,120]
[330450781,1719421071664,-1998.63,0.00044109,120]
[330450782,1719421071701,-1473.31,0.00044109,120]
[330450783,1719421071742,-500.0,0.00044109,120]
[330450784,1719421071781,-500.0,0.00044109,120]
[330450785,1719421071822,-500.0,0.00044109,120]
[330450786,1719421071859,-536.4910465,0.00044109,120]
[330450787,1719421071897,-505.26411661,0.00044109,120]
[330450788,1719421071934,-501.39,0.00044109,120]
[330450789,1719421071974,-500.0,0.00044109,120]
[330450790,1719421072011,-500.0,0.00044109,120]
[330450791,1719421072049,-969.76,0.00044109,120]
[330450792,1719421072088,-1008.87,0.00044109,120]
[330450793,1719421072125,-500.0,0.00044109,120]
[330450794,1719421072162,-1521.98,0.00044109,120]
[330450795,1719421072199,-500.0,0.00044109,120]
[330450796,1719421072237,-500.0,0.00044109,120]
[330450797,1719421072274,-763.87,0.00044109,120]
[330450798,1719421072310,-1189.62,0.00044109,120]
[330450799,1719421072348,-297.24499237,0.00044109,120]
[330450800,1719421072383,-500.0,0.00044109,120]
[330450801,1719421072421,-500.0,0.00044109,120]
[330450802,1719421072458,-500.0,0.00044109,120]
[330450803,1719421072493,-896.53,0.00044109,120]
[330450804,1719421072528,-500.0,0.00044109,120]
[330450805,1719421072563,-373.75376353,0.00044109,120]
[330450806,1719421072603,-500.0,0.00044109,120]
[330450807,1719421072641,-993.99,0.00044109,120]
[330450808,1719421072678,-828.85,0.00044109,120]
[330450809,1719421072718,-500.0,0.00044109,120]
[330450810,1719421072757,-500.0,0.00044109,120]
[330450811,1719421072795,-500.0,0.00044109,120]
[330450812,1719421072833,-500.0,0.00044109,120]
[330450813,1719421072872,-539.57284835,0.00044109,120]
[330450814,1719421072912,-532.6,0.00044109,120]
[330450815,1719421072951,-500.0,0.00044109,120]
[330450816,1719421072987,-500.0,0.00044109,120]
[330450817,1719421073026,-500.0,0.00044109,120]
[330450818,1719421073064,-797.83,0.00044109,120]
[330450819,1719421073100,-564.44,0.00044109,120]
[330450820,1719421073140,-500.0,0.00044109,120]
[330450821,1719421073178,-692.81,0.00044109,120]
[330450822,1719421073214,-2291.52,0.00044109,120]
[330450823,1719421073249,-1581.05,0.00044109,120]
[330450824,1719421073286,-500.0,0.00044109,120]
[330450825,1719421073320,-500.0,0.00044109,120]
[330450826,1719421073354,-500.0,0.00044109,120]
[330450827,1719421073391,-500.0,0.00044109,120]
[330450828,1719421073427,-737.06,0.00044109,120]
[330450829,1719421073461,-500.0,0.00044109,120]
[330450830,1719421073498,-500.0,0.00044109,120]
[330450831,1719421073535,-500.0,0.00044109,120]
[330450832,1719421073572,-500.0,0.00044109,120]
[330450833,1719421073608,-500.0,0.00044109,120]
[330450834,1719421073646,-500.0,0.00044109,120]
[330450835,1719421073682,-1129.33,0.00044109,120]
[330450836,1719421073720,-500.0,0.00044109,120]
[330450837,1719421073758,-1469.06,0.00044109,120]
[330450838,1719421073795,-932.41,0.00044109,120]
[330450839,1719421073832,-500.0,0.00044109,120]
[330450840,1719421073868,-500.0,0.00044109,120]
[330450841,1719421073903,-582.0,0.00044109,120]
[330450842,1719421073938,-500.0,0.00044109,120]
[330450843,1719421073982,-500.0,0.00044109,120]
[330450844,1719421074024,-500.0,0.00044109,120]
[330450845,1719421074065,-500.0,0.00044109,120]
[330450846,1719421074106,-671.27,0.00044109,120]
[330450847,1719421074143,-500.0,0.00044109,120]
[330450848,1719421074180,-500.0,0.00044109,120]
[330450849,1719421074217,-448.91,0.00044109,120]
[330450850,1719421074253,-500.0,0.00044109,120]
[330450851,1719421074293,-500.0,0.00044109,120]